[Event "Titled Tuesday Blitz April 25 Early 2023"]
[White "Asavasaetakul, Chawit"]
[Black "Rozen, Eytan"]
[WhiteFideId "6204856"]
[BlackFideId "2816750"]
[WhiteElo "1919"]
[BlackElo "2451"]
[Result "0-1"]
[Round "04"]
[TimeControl "180+2"]
[Date "2023.04.25"]
[WhiteClock "0:00:24"]
[BlackClock "0:00:08"]

1. e4 {[%clk 0:03:00]}  c6 {[%clk 0:02:57]} 2. d4 {[%clk 0:03:00]}  d5 {[%clk 0:02:58]} 3. Nd2 {[%clk 0:03:01]}  dxe4 {[%clk 0:02:57]} 4. Nxe4 {[%clk 0:03:02]}  Nd7 {[%clk 0:02:56]} 5. Ng5 {[%clk 0:03:01]}  e6 {[%clk 0:02:49]} 6. Bd3 {[%clk 0:02:44]}  Ngf6 {[%clk 0:02:45]} 7. N1f3 {[%clk 0:02:41]}  Bd6 {[%clk 0:02:40]} 8. Qe2 {[%clk 0:02:40]}  h6 {[%clk 0:02:32]} 9. Ne4 {[%clk 0:02:40]}  Nxe4 {[%clk 0:02:30]} 10. Qxe4 {[%clk 0:02:41]}  Nf6 {[%clk 0:02:26]} 11. Qe2 {[%clk 0:02:36]}  O-O {[%clk 0:02:24]} 12. Bd2 {[%clk 0:02:35]}  a5 {[%clk 0:02:17]} 13. O-O-O {[%clk 0:02:29]}  a4 {[%clk 0:02:18]} 14. g4 {[%clk 0:02:27]}  Nd5 {[%clk 0:02:14]} 15. Ne5 {[%clk 0:02:18]}  a3 {[%clk 0:01:48]} 16. b3 {[%clk 0:02:18]}  Bb4 {[%clk 0:01:39]} 17. c4 {[%clk 0:01:51]}  Nc3 {[%clk 0:01:26]} 18. Bxc3 {[%clk 0:01:42]}  Bxc3 {[%clk 0:01:27]} 19. Kc2 {[%clk 0:01:43]}  Bxd4 {[%clk 0:01:19]} 20. Nf3 {[%clk 0:01:42]}  c5 {[%clk 0:01:12]} 21. h4 {[%clk 0:01:29]}  Qa5 {[%clk 0:01:06]} 22. Qd2 {[%clk 0:01:26]}  Qxd2+ {[%clk 0:01:02]} 23. Rxd2 {[%clk 0:01:22]}  e5 {[%clk 0:01:02]} 24. Rg1 {[%clk 0:01:20]}  f5 {[%clk 0:00:51]} 25. gxf5 {[%clk 0:01:19]}  Bxf5 {[%clk 0:00:52]} 26. Nxd4 {[%clk 0:01:03]}  exd4 {[%clk 0:00:40]} 27. Re1 {[%clk 0:00:47]}  Bxd3+ {[%clk 0:00:37]} 28. Kxd3 {[%clk 0:00:47]}  Rf3+ {[%clk 0:00:37]} 29. Kc2 {[%clk 0:00:44]}  Raf8 {[%clk 0:00:35]} 30. Re5 {[%clk 0:00:39]}  b6 {[%clk 0:00:31]} 31. Ree2 {[%clk 0:00:38]}  Rc3+ {[%clk 0:00:28]} 32. Kd1 {[%clk 0:00:37]}  Rh3 {[%clk 0:00:26]} 33. Re6 {[%clk 0:00:35]}  d3 {[%clk 0:00:20]} 34. Re1 {[%clk 0:00:19]}  Rxh4 {[%clk 0:00:20]} 35. Rxd3 {[%clk 0:00:19]}  Rxf2 {[%clk 0:00:20]} 36. Rd2 {[%clk 0:00:19]}  Rxd2+ {[%clk 0:00:20]} 37. Kxd2 {[%clk 0:00:20]}  Rh2+ {[%clk 0:00:21]} 38. Kc3 {[%clk 0:00:21]}  Rxa2 {[%clk 0:00:21]} 39. Re8+ {[%clk 0:00:21]}  Kh7 {[%clk 0:00:18]} 40. Rb8 {[%clk 0:00:22]}  Rg2 {[%clk 0:00:15]} 41. Rxb6 {[%clk 0:00:22]}  a2 {[%clk 0:00:16]} 42. Ra6 {[%clk 0:00:23]}  h5 {[%clk 0:00:15]} 43. b4 {[%clk 0:00:23]}  cxb4+ {[%clk 0:00:11]} 44. Kxb4 {[%clk 0:00:23]}  h4 {[%clk 0:00:11]} 45. c5 {[%clk 0:00:24]}  h3 {[%clk 0:00:12]} 46. c6 {[%clk 0:00:24]}  h2 {[%clk 0:00:12]} 47. c7 {[%clk 0:00:25]}  h1=Q {[%clk 0:00:10]} 48. Rxa2 {[%clk 0:00:25]}  Qb1+ {[%clk 0:00:10]} 49. Kc5 {[%clk 0:00:24]}  Qxa2 {[%clk 0:00:09]} 50. c8=Q {[%clk 0:00:24]}  Rc2+ {[%clk 0:00:08]} 0-1


[Site "https://www.chess.com"]

[Event "Titled Tuesday Blitz April 25 Early 2023"]
[White "Sliwicka, Alicja"]
[Black "Goltsev, Dmitry"]
[WhiteFideId "1150677"]
[BlackFideId "24176710"]
[WhiteElo "2206"]
[BlackElo "2336"]
[Result "1-0"]
[Round "04"]
[TimeControl "180+2"]
[Date "2023.04.25"]
[WhiteClock "0:01:31"]
[BlackClock "0:01:25"]

1. e4 {[%clk 0:02:59]}  e6 {[%clk 0:03:00]} 2. d4 {[%clk 0:02:59]}  d5 {[%clk 0:03:01]} 3. e5 {[%clk 0:02:58]}  c5 {[%clk 0:03:01]} 4. c3 {[%clk 0:02:59]}  Nc6 {[%clk 0:03:02]} 5. Nf3 {[%clk 0:02:59]}  Qa5 {[%clk 0:03:02]} 6. Bd3 {[%clk 0:02:53]}  cxd4 {[%clk 0:03:01]} 7. O-O {[%clk 0:02:53]}  dxc3 {[%clk 0:02:59]} 8. Nxc3 {[%clk 0:02:53]}  Nge7 {[%clk 0:03:00]} 9. Re1 {[%clk 0:02:49]}  Ng6 {[%clk 0:02:59]} 10. h4 {[%clk 0:02:48]}  Bc5 {[%clk 0:02:53]} 11. h5 {[%clk 0:02:45]}  Nge7 {[%clk 0:02:52]} 12. h6 {[%clk 0:02:41]}  gxh6 {[%clk 0:02:46]} 13. Bxh6 {[%clk 0:02:41]}  Ng6 {[%clk 0:02:43]} 14. Ng5 {[%clk 0:02:11]}  Ncxe5 {[%clk 0:02:39]} 15. Bxg6 {[%clk 0:02:03]}  Nxg6 {[%clk 0:02:26]} 16. Nxd5 {[%clk 0:01:59]}  Qd8 {[%clk 0:02:25]} 17. Qf3 {[%clk 0:01:54]}  Rf8 {[%clk 0:01:36]} 18. Bxf8 {[%clk 0:01:54]}  Qxg5 {[%clk 0:01:36]} 19. Bxc5 {[%clk 0:01:49]}  Nh4 {[%clk 0:01:26]} 20. Nf6+ {[%clk 0:01:48]}  Kd8 {[%clk 0:01:26]} 21. Rad1+ {[%clk 0:01:44]}  Kc7 {[%clk 0:01:25]} 22. Ne8+ {[%clk 0:01:31]} 1-0


[Site "https://www.chess.com"]

[Event "Titled Tuesday Blitz April 25 Early 2023"]
[White "Rustemov, Alexander"]
[Black "Sahib Singh"]
[WhiteFideId "4119002"]
[BlackFideId "25618342"]
[WhiteElo "2790"]
[BlackElo "1934"]
[Result "0-1"]
[Round "04"]
[TimeControl "180+2"]
[Date "2023.04.25"]
[WhiteClock "0:00:04"]
[BlackClock "0:00:10"]

1. d4 {[%clk 0:03:00]}  d5 {[%clk 0:02:55]} 2. c4 {[%clk 0:03:01]}  c6 {[%clk 0:02:53]} 3. Nc3 {[%clk 0:03:01]}  e6 {[%clk 0:02:53]} 4. e3 {[%clk 0:03:01]}  f5 {[%clk 0:02:53]} 5. Bd3 {[%clk 0:02:57]}  Nf6 {[%clk 0:02:49]} 6. Qc2 {[%clk 0:02:57]}  g6 {[%clk 0:02:37]} 7. Nge2 {[%clk 0:02:52]}  Bd6 {[%clk 0:02:34]} 8. Bd2 {[%clk 0:02:50]}  a6 {[%clk 0:02:33]} 9. f3 {[%clk 0:02:47]}  b5 {[%clk 0:02:33]} 10. c5 {[%clk 0:02:41]}  Bc7 {[%clk 0:02:33]} 11. O-O {[%clk 0:02:30]}  O-O {[%clk 0:02:27]} 12. e4 {[%clk 0:02:30]}  fxe4 {[%clk 0:02:11]} 13. fxe4 {[%clk 0:02:30]}  b4 {[%clk 0:01:56]} 14. Na4 {[%clk 0:02:25]}  e5 {[%clk 0:01:32]} 15. exd5 {[%clk 0:01:57]}  cxd5 {[%clk 0:01:15]} 16. Bxg6 {[%clk 0:01:57]}  e4 {[%clk 0:01:01]} 17. Bf5 {[%clk 0:01:52]}  Bxh2+ {[%clk 0:00:43]} 18. Kxh2 {[%clk 0:01:49]}  Bxf5 {[%clk 0:00:42]} 19. Rxf5 {[%clk 0:01:30]}  Ng4+ {[%clk 0:00:42]} 20. Kg3 {[%clk 0:01:31]}  Rxf5 {[%clk 0:00:43]} 21. Kxg4 {[%clk 0:01:31]}  Qf6 {[%clk 0:00:23]} 22. Ng3 {[%clk 0:00:58]}  Rf2 {[%clk 0:00:15]} 23. Qc1 {[%clk 0:00:50]}  Rxg2 {[%clk 0:00:11]} 24. Bf4 {[%clk 0:00:46]}  Ra7 {[%clk 0:00:10]} 25. Kh3 {[%clk 0:00:45]}  Rf2 {[%clk 0:00:10]} 26. Bg5 {[%clk 0:00:08]}  Qe6+ {[%clk 0:00:10]} 27. Nf5 {[%clk 0:00:04]}  Qxf5+ {[%clk 0:00:10]} 28. Kg3 {[%clk 0:00:04]}  Qf3+ {[%clk 0:00:10]} 0-1


[Site "https://www.chess.com"]

[Event "Titled Tuesday Blitz April 25 Early 2023"]
[White "Martic, Ivan"]
[Black "Omranalhosani21"]
[WhiteFideId "929301"]
[WhiteElo "2360"]
[BlackElo "2762"]
[Result "1-0"]
[Round "04"]
[TimeControl "180+2"]
[Date "2023.04.25"]
[WhiteClock "0:00:09"]
[BlackClock "0:00:09"]

1. e4 {[%clk 0:03:00]}  c5 {[%clk 0:02:59]} 2. Be2 {[%clk 0:03:00]}  Nc6 {[%clk 0:02:59]} 3. f4 {[%clk 0:03:01]}  d5 {[%clk 0:02:56]} 4. d3 {[%clk 0:02:59]}  dxe4 {[%clk 0:02:56]} 5. dxe4 {[%clk 0:03:00]}  Qxd1+ {[%clk 0:02:56]} 6. Bxd1 {[%clk 0:03:01]}  Nf6 {[%clk 0:02:51]} 7. e5 {[%clk 0:02:54]}  Nd5 {[%clk 0:02:50]} 8. c3 {[%clk 0:02:54]}  e6 {[%clk 0:02:49]} 9. Na3 {[%clk 0:02:52]}  a6 {[%clk 0:02:47]} 10. Nf3 {[%clk 0:02:50]}  Be7 {[%clk 0:02:42]} 11. O-O {[%clk 0:02:47]}  b5 {[%clk 0:02:38]} 12. Be2 {[%clk 0:02:45]}  c4 {[%clk 0:02:37]} 13. Nc2 {[%clk 0:02:42]}  O-O {[%clk 0:02:37]} 14. Ncd4 {[%clk 0:02:41]}  Bb7 {[%clk 0:02:36]} 15. Nxc6 {[%clk 0:02:40]}  Bxc6 {[%clk 0:02:36]} 16. Nd4 {[%clk 0:02:41]}  Bc5 {[%clk 0:02:36]} 17. Kh1 {[%clk 0:02:40]}  Bxd4 {[%clk 0:02:36]} 18. cxd4 {[%clk 0:02:41]}  Rfd8 {[%clk 0:02:33]} 19. a3 {[%clk 0:02:40]}  Nb6 {[%clk 0:02:30]} 20. Be3 {[%clk 0:02:38]}  Na4 {[%clk 0:02:29]} 21. f5 {[%clk 0:02:33]}  Nxb2 {[%clk 0:02:26]} 22. f6 {[%clk 0:02:10]}  g6 {[%clk 0:02:24]} 23. h4 {[%clk 0:02:02]}  Be4 {[%clk 0:02:15]} 24. Rf4 {[%clk 0:01:58]}  Bf5 {[%clk 0:02:06]} 25. g4 {[%clk 0:01:57]}  Bd3 {[%clk 0:02:05]} 26. Bf3 {[%clk 0:01:56]}  Rac8 {[%clk 0:02:01]} 27. g5 {[%clk 0:01:55]}  c3 {[%clk 0:01:56]} 28. h5 {[%clk 0:01:52]}  c2 {[%clk 0:01:54]} 29. hxg6 {[%clk 0:01:53]}  Bxg6 {[%clk 0:01:54]} 30. Be2 {[%clk 0:01:50]}  Nc4 {[%clk 0:01:34]} 31. Bxc4 {[%clk 0:01:45]}  Rxc4 {[%clk 0:01:35]} 32. Kh2 {[%clk 0:01:41]}  a5 {[%clk 0:01:32]} 33. Kg3 {[%clk 0:01:40]}  b4 {[%clk 0:01:31]} 34. axb4 {[%clk 0:01:41]}  axb4 {[%clk 0:01:32]} 35. d5 {[%clk 0:01:37]}  Rc3 {[%clk 0:01:20]} 36. Kf2 {[%clk 0:01:32]}  b3 {[%clk 0:01:16]} 37. Rb4 {[%clk 0:01:26]}  exd5 {[%clk 0:01:12]} 38. Bc1 {[%clk 0:01:05]}  h5 {[%clk 0:01:04]} 39. Ra7 {[%clk 0:00:58]}  d4 {[%clk 0:01:00]} 40. e6 {[%clk 0:00:58]}  d3 {[%clk 0:00:47]} 41. e7 {[%clk 0:00:57]}  Re8 {[%clk 0:00:46]} 42. Rd7 {[%clk 0:00:56]}  b2 {[%clk 0:00:08]} 43. Rxb2 {[%clk 0:00:55]}  Rcc8 {[%clk 0:00:08]} 44. Rb6 {[%clk 0:00:50]}  Be4 {[%clk 0:00:08]} 45. Rbd6 {[%clk 0:00:47]}  Bc6 {[%clk 0:00:06]} 46. Rd8 {[%clk 0:00:46]}  Kh7 {[%clk 0:00:04]} 47. Rxd3 {[%clk 0:00:43]}  Kg6 {[%clk 0:00:03]} 48. Rxc8 {[%clk 0:00:40]}  Rxc8 {[%clk 0:00:03]} 49. Rd8 {[%clk 0:00:40]}  Rc7 {[%clk 0:00:04]} 50. e8=Q {[%clk 0:00:31]}  Bxe8 {[%clk 0:00:04]} 51. Rxe8 {[%clk 0:00:31]}  Rc3 {[%clk 0:00:04]} 52. Re3 {[%clk 0:00:29]}  Rc4 {[%clk 0:00:03]} 53. Rh3 {[%clk 0:00:26]}  h4 {[%clk 0:00:04]} 54. Ke2 {[%clk 0:00:26]}  Kh5 {[%clk 0:00:04]} 55. Rh1 {[%clk 0:00:20]}  Rg4 {[%clk 0:00:03]} 56. Kd3 {[%clk 0:00:18]}  Rg2 {[%clk 0:00:03]} 57. Be3 {[%clk 0:00:11]}  Kg4 {[%clk 0:00:01]} 58. g6 {[%clk 0:00:11]}  fxg6 {[%clk 0:00:01]} 59. f7 {[%clk 0:00:11]}  c1=Q {[%clk 0:00:01]} 60. Bxc1 {[%clk 0:00:11]}  Rf2 {[%clk 0:00:01]} 61. Rg1+ {[%clk 0:00:07]}  Kh3 {[%clk 0:00:01]} 62. Rxg6 {[%clk 0:00:06]}  Rxf7 {[%clk 0:00:02]} 63. Be3 {[%clk 0:00:07]}  Rf3 {[%clk 0:00:01]} 64. Ke4 {[%clk 0:00:06]}  Rg3 {[%clk 0:00:02]} 65. Rh6 {[%clk 0:00:06]}  Rg4+ {[%clk 0:00:02]} 66. Bf4 {[%clk 0:00:05]}  Kg2 {[%clk 0:00:02]} 67. Ra6 {[%clk 0:00:04]}  h3 {[%clk 0:00:02]} 68. Ra2+ {[%clk 0:00:04]}  Kf1 {[%clk 0:00:03]} 69. Kf3 {[%clk 0:00:05]}  Rxf4+ {[%clk 0:00:01]} 70. Kxf4 {[%clk 0:00:05]}  h2 {[%clk 0:00:02]} 71. Rxh2 {[%clk 0:00:05]}  Kg1 {[%clk 0:00:02]} 72. Kg3 {[%clk 0:00:05]}  Kf1 {[%clk 0:00:03]} 73. Rg2 {[%clk 0:00:06]}  Ke1 {[%clk 0:00:04]} 74. Rf2 {[%clk 0:00:06]}  Kd1 {[%clk 0:00:05]} 75. Kf3 {[%clk 0:00:07]}  Ke1 {[%clk 0:00:06]} 76. Ke3 {[%clk 0:00:07]}  Kd1 {[%clk 0:00:06]} 77. Re2 {[%clk 0:00:08]}  Kc1 {[%clk 0:00:07]} 78. Rd2 {[%clk 0:00:08]}  Kb1 {[%clk 0:00:07]} 79. Kd3 {[%clk 0:00:09]}  Kc1 {[%clk 0:00:08]} 80. Kc3 {[%clk 0:00:09]}  Kb1 {[%clk 0:00:08]} 81. Rg2 {[%clk 0:00:08]}  Ka1 {[%clk 0:00:08]} 82. Kb3 {[%clk 0:00:09]}  Kb1 {[%clk 0:00:09]} 83. Rg1# {[%clk 0:00:09]} 1-0


[Site "https://www.chess.com"]

[Event "Titled Tuesday Blitz April 25 Early 2023"]
[White "Weetik, Vjacheslav"]
[Black "Lund, Gunnar"]
[WhiteFideId "4153472"]
[BlackFideId "1520814"]
[WhiteElo "2469"]
[BlackElo "2233"]
[Result "1/2-1/2"]
[Round "04"]
[TimeControl "180+2"]
[Date "2023.04.25"]
[WhiteClock "0:00:04"]
[BlackClock "0:00:12"]

1. d4 {[%clk 0:02:56]}  Nf6 {[%clk 0:02:59]} 2. Bf4 {[%clk 0:02:54]}  d5 {[%clk 0:02:59]} 3. e3 {[%clk 0:02:54]}  c5 {[%clk 0:02:59]} 4. c3 {[%clk 0:02:54]}  Nc6 {[%clk 0:02:59]} 5. Nd2 {[%clk 0:02:54]}  e6 {[%clk 0:02:56]} 6. Bd3 {[%clk 0:02:54]}  Bd6 {[%clk 0:02:29]} 7. Bxd6 {[%clk 0:02:54]}  Qxd6 {[%clk 0:02:29]} 8. f4 {[%clk 0:02:55]}  cxd4 {[%clk 0:02:26]} 9. cxd4 {[%clk 0:02:54]}  O-O {[%clk 0:01:58]} 10. Ngf3 {[%clk 0:02:53]}  Nb4 {[%clk 0:01:58]} 11. Bb1 {[%clk 0:02:52]}  Ng4 {[%clk 0:01:58]} 12. Nf1 {[%clk 0:02:39]}  f5 {[%clk 0:01:50]} 13. a3 {[%clk 0:02:31]}  Nc6 {[%clk 0:01:49]} 14. h3 {[%clk 0:02:20]}  Nf6 {[%clk 0:01:49]} 15. Ng3 {[%clk 0:02:02]}  b6 {[%clk 0:01:45]} 16. Ne5 {[%clk 0:01:50]}  Ne4 {[%clk 0:01:44]} 17. Bxe4 {[%clk 0:01:47]}  fxe4 {[%clk 0:01:45]} 18. O-O {[%clk 0:01:45]}  Ba6 {[%clk 0:01:42]} 19. Rf2 {[%clk 0:01:41]}  Nxe5 {[%clk 0:01:42]} 20. dxe5 {[%clk 0:01:41]}  Qe7 {[%clk 0:01:39]} 21. Qg4 {[%clk 0:01:38]}  Bd3 {[%clk 0:01:30]} 22. Rc1 {[%clk 0:01:35]}  Rac8 {[%clk 0:01:29]} 23. Rxc8 {[%clk 0:01:35]}  Rxc8 {[%clk 0:01:30]} 24. f5 {[%clk 0:01:35]}  exf5 {[%clk 0:01:09]} 25. Nxf5 {[%clk 0:01:35]}  Rc1+ {[%clk 0:01:10]} 26. Kh2 {[%clk 0:01:33]}  Qxe5+ {[%clk 0:01:09]} 27. g3 {[%clk 0:01:23]}  g6 {[%clk 0:00:27]} 28. Nh6+ {[%clk 0:00:25]}  Kg7 {[%clk 0:00:26]} 29. Rf7+ {[%clk 0:00:16]}  Kxh6 {[%clk 0:00:27]} 30. Qh4+ {[%clk 0:00:15]}  Qh5 {[%clk 0:00:24]} 31. Qf4+ {[%clk 0:00:14]}  g5 {[%clk 0:00:23]} 32. Qd6+ {[%clk 0:00:04]}  Qg6 {[%clk 0:00:18]} 33. Rf6 {[%clk 0:00:04]}  Rc2+ {[%clk 0:00:15]} 34. Kg1 {[%clk 0:00:04]}  Rc1+ {[%clk 0:00:12]} 35. Kh2 {[%clk 0:00:04]}  Rc2+ {[%clk 0:00:13]} 36. Kg1 {[%clk 0:00:04]}  Rc1+ {[%clk 0:00:13]} 37. Kg2 {[%clk 0:00:05]}  Rc2+ {[%clk 0:00:12]} 38. Kg1 {[%clk 0:00:04]} 1/2-1/2


[Site "https://www.chess.com"]

[Event "Titled Tuesday Blitz April 25 Early 2023"]
[White "Leenhouts, Koen"]
[Black "Samunenkov, Ihor"]
[WhiteFideId "1008439"]
[BlackFideId "14187086"]
[WhiteElo "2409"]
[BlackElo "2457"]
[Result "1-0"]
[Round "04"]
[TimeControl "180+2"]
[Date "2023.04.25"]
[WhiteClock "0:00:31"]
[BlackClock "0:00:01"]

1. d4 {[%clk 0:03:00]}  d5 {[%clk 0:02:58]} 2. c4 {[%clk 0:03:00]}  dxc4 {[%clk 0:02:57]} 3. e3 {[%clk 0:02:58]}  e5 {[%clk 0:02:58]} 4. Bxc4 {[%clk 0:02:57]}  exd4 {[%clk 0:02:58]} 5. Nf3 {[%clk 0:02:57]}  Bb4+ {[%clk 0:02:52]} 6. Bd2 {[%clk 0:02:54]}  Bxd2+ {[%clk 0:02:51]} 7. Qxd2 {[%clk 0:02:54]}  dxe3 {[%clk 0:02:42]} 8. Bxf7+ {[%clk 0:02:51]}  Ke7 {[%clk 0:02:42]} 9. Qxd8+ {[%clk 0:02:17]}  Kxd8 {[%clk 0:02:43]} 10. fxe3 {[%clk 0:02:17]}  Nh6 {[%clk 0:02:38]} 11. Bb3 {[%clk 0:02:12]}  Ke7 {[%clk 0:02:22]} 12. Nc3 {[%clk 0:02:10]}  c6 {[%clk 0:02:22]} 13. O-O {[%clk 0:02:00]}  Nd7 {[%clk 0:02:19]} 14. Ne4 {[%clk 0:01:50]}  Ng4 {[%clk 0:01:37]} 15. Nd4 {[%clk 0:01:39]}  Nde5 {[%clk 0:01:30]} 16. h3 {[%clk 0:01:31]}  Nh6 {[%clk 0:01:19]} 17. Ng5 {[%clk 0:01:13]}  c5 {[%clk 0:01:12]} 18. Nb5 {[%clk 0:01:06]}  c4 {[%clk 0:01:04]} 19. Bc2 {[%clk 0:01:05]}  Rb8 {[%clk 0:00:31]} 20. Nc3 {[%clk 0:00:57]}  Be6 {[%clk 0:00:29]} 21. Nxe6 {[%clk 0:00:55]}  Kxe6 {[%clk 0:00:29]} 22. Nb5 {[%clk 0:00:54]}  a6 {[%clk 0:00:25]} 23. Nd4+ {[%clk 0:00:54]}  Ke7 {[%clk 0:00:26]} 24. a4 {[%clk 0:00:52]}  b6 {[%clk 0:00:21]} 25. Rf4 {[%clk 0:00:49]}  Rbc8 {[%clk 0:00:09]} 26. Re4 {[%clk 0:00:48]}  Rc5 {[%clk 0:00:06]} 27. Rf1 {[%clk 0:00:38]}  Nf7 {[%clk 0:00:05]} 28. Nf5+ {[%clk 0:00:37]}  Kd7 {[%clk 0:00:02]} 29. Nxg7 {[%clk 0:00:36]}  Nd6 {[%clk 0:00:02]} 30. Rd4 {[%clk 0:00:33]}  Kc6 {[%clk 0:00:01]} 31. Rf6 {[%clk 0:00:31]}  Rd5 {[%clk 0:00:01]} 32. Be4 {[%clk 0:00:31]} 1-0


[Site "https://www.chess.com"]

[Event "Titled Tuesday Blitz April 25 Early 2023"]
[White "Karthik Rajaa"]
[Black "Bosnjak, Petar"]
[WhiteFideId "25035215"]
[BlackFideId "14532581"]
[WhiteElo "2215"]
[BlackElo "2227"]
[Result "0-1"]
[Round "04"]
[TimeControl "180+2"]
[Date "2023.04.25"]
[WhiteClock "0:00:01"]
[BlackClock "0:01:13"]

1. Nf3 {[%clk 0:02:59]}  c6 {[%clk 0:03:00]} 2. e4 {[%clk 0:02:58]}  d5 {[%clk 0:03:01]} 3. Nc3 {[%clk 0:02:59]}  Bg4 {[%clk 0:03:01]} 4. h3 {[%clk 0:02:58]}  Bxf3 {[%clk 0:02:59]} 5. Qxf3 {[%clk 0:02:59]}  dxe4 {[%clk 0:02:58]} 6. Nxe4 {[%clk 0:02:58]}  Nd7 {[%clk 0:02:55]} 7. d4 {[%clk 0:02:52]}  Ngf6 {[%clk 0:02:55]} 8. Ng3 {[%clk 0:02:49]}  e6 {[%clk 0:02:54]} 9. c3 {[%clk 0:02:48]}  Qc7 {[%clk 0:02:53]} 10. a4 {[%clk 0:02:46]}  a5 {[%clk 0:02:51]} 11. Be2 {[%clk 0:02:41]}  Bd6 {[%clk 0:02:47]} 12. Ne4 {[%clk 0:02:32]}  Nxe4 {[%clk 0:02:47]} 13. Qxe4 {[%clk 0:02:33]}  Nf6 {[%clk 0:02:47]} 14. Qf3 {[%clk 0:02:33]}  O-O {[%clk 0:02:45]} 15. O-O {[%clk 0:02:33]}  Nd5 {[%clk 0:02:39]} 16. g3 {[%clk 0:02:22]}  c5 {[%clk 0:02:36]} 17. dxc5 {[%clk 0:02:15]}  Bxc5 {[%clk 0:02:37]} 18. h4 {[%clk 0:02:03]}  Rad8 {[%clk 0:02:32]} 19. h5 {[%clk 0:02:02]}  h6 {[%clk 0:02:30]} 20. Kg2 {[%clk 0:01:56]}  Qe7 {[%clk 0:02:18]} 21. Bd3 {[%clk 0:01:42]}  Rd7 {[%clk 0:02:09]} 22. Bb5 {[%clk 0:01:15]}  Rd6 {[%clk 0:02:07]} 23. Re1 {[%clk 0:01:12]}  Qf6 {[%clk 0:02:03]} 24. Qxf6 {[%clk 0:01:08]}  Nxf6 {[%clk 0:02:04]} 25. Bf4 {[%clk 0:01:09]}  Rd5 {[%clk 0:02:03]} 26. Rad1 {[%clk 0:00:48]}  Rxh5 {[%clk 0:01:54]} 27. Bc7 {[%clk 0:00:46]}  Rc8 {[%clk 0:01:34]} 28. Bxa5 {[%clk 0:00:43]}  Ng4 {[%clk 0:01:34]} 29. Rh1 {[%clk 0:00:28]}  Rf5 {[%clk 0:01:32]} 30. f4 {[%clk 0:00:13]}  Ne3+ {[%clk 0:01:30]} 31. Kf3 {[%clk 0:00:13]}  Nxd1 {[%clk 0:01:30]} 32. Rxd1 {[%clk 0:00:14]}  Rd5 {[%clk 0:01:26]} 33. Rxd5 {[%clk 0:00:08]}  exd5 {[%clk 0:01:27]} 34. Bd7 {[%clk 0:00:03]}  Ra8 {[%clk 0:01:27]} 35. b4 {[%clk 0:00:04]}  Kf8 {[%clk 0:01:24]} 36. Bc7 {[%clk 0:00:02]}  Ke7 {[%clk 0:01:21]} 37. Bb5 {[%clk 0:00:01]}  Rc8 {[%clk 0:01:14]} 38. Be5 {[%clk 0:00:01]}  f6 {[%clk 0:01:13]} 0-1


[Site "https://www.chess.com"]

[Event "Titled Tuesday Blitz April 25 Early 2023"]
[White "Sonnenschein, Philipp"]
[Black "Dimitrov, Atanas"]
[WhiteFideId "16250877"]
[BlackFideId "2901315"]
[WhiteElo "2224"]
[BlackElo "2702"]
[Result "0-1"]
[Round "04"]
[TimeControl "180+2"]
[Date "2023.04.25"]
[WhiteClock "0:00:29"]
[BlackClock "0:01:23"]

1. e4 {[%clk 0:03:00]}  c5 {[%clk 0:02:59]} 2. Nf3 {[%clk 0:03:01]}  d6 {[%clk 0:02:50]} 3. d4 {[%clk 0:03:00]}  cxd4 {[%clk 0:02:51]} 4. Nxd4 {[%clk 0:03:01]}  Nf6 {[%clk 0:02:51]} 5. Nc3 {[%clk 0:03:01]}  g6 {[%clk 0:02:52]} 6. Be3 {[%clk 0:03:00]}  Bg7 {[%clk 0:02:52]} 7. f3 {[%clk 0:03:00]}  O-O {[%clk 0:02:52]} 8. Qd2 {[%clk 0:02:57]}  Nc6 {[%clk 0:02:52]} 9. O-O-O {[%clk 0:02:56]}  Bd7 {[%clk 0:02:53]} 10. Kb1 {[%clk 0:02:54]}  Ne5 {[%clk 0:02:53]} 11. h4 {[%clk 0:02:51]}  h5 {[%clk 0:02:53]} 12. Bg5 {[%clk 0:02:23]}  Rc8 {[%clk 0:02:51]} 13. Nd5 {[%clk 0:02:18]}  Nxd5 {[%clk 0:02:43]} 14. exd5 {[%clk 0:02:19]}  Qb6 {[%clk 0:02:44]} 15. Bxe7 {[%clk 0:02:05]}  Rfe8 {[%clk 0:02:44]} 16. Bg5 {[%clk 0:02:02]}  Nc4 {[%clk 0:02:35]} 17. Bxc4 {[%clk 0:02:00]}  Rxc4 {[%clk 0:02:35]} 18. Nb3 {[%clk 0:01:52]}  Bf5 {[%clk 0:02:35]} 19. Rc1 {[%clk 0:01:40]}  Rec8 {[%clk 0:02:17]} 20. Qe3 {[%clk 0:01:22]}  Bxc2+ {[%clk 0:01:58]} 21. Ka1 {[%clk 0:01:19]}  Qa6 {[%clk 0:01:56]} 22. Rxc2 {[%clk 0:00:47]}  Rxc2 {[%clk 0:01:55]} 23. Rb1 {[%clk 0:00:47]}  Rxg2 {[%clk 0:01:37]} 24. Bh6 {[%clk 0:00:45]}  Bh8 {[%clk 0:01:33]} 25. Nd4 {[%clk 0:00:40]}  Qc4 {[%clk 0:01:31]} 26. Nb3 {[%clk 0:00:32]}  Qxd5 {[%clk 0:01:29]} 27. Bf4 {[%clk 0:00:29]}  Bf6 {[%clk 0:01:23]} 0-1


[Site "https://www.chess.com"]